[Event "Early-Titled-Tuesday-Blitz-April-23-2024"]
[Site "Chess.com"]
[Date "2024.04.23"]
[Round "3"]
[White "DanyKopy"]
[Black "KogotBobra17"]
[Result "1-0"]
[WhiteElo "2545"]
[BlackElo "2751"]
[TimeControl "180+1"]
[EndTime "8:27:11 PDT"]
[Termination "DanyKopy won by resignation"]

1. Nf3 {[%clk 0:03:00]} 1... b5 {[%clk 0:02:59.1]} 2. e4 {[%clk 0:02:58.7]} 2...
Bb7 {[%clk 0:02:59.2]} 3. Bxb5 {[%clk 0:02:58.1]} 3... Bxe4 {[%clk 0:02:59.8]}
4. O-O {[%clk 0:02:58.5]} 4... Nf6 {[%clk 0:02:59.2]} 5. Re1 {[%clk 0:02:57.9]}
5... e6 {[%clk 0:02:53.1]} 6. d4 {[%clk 0:02:55.1]} 6... Be7 {[%clk 0:02:51.3]}
7. c4 {[%clk 0:02:54.9]} 7... O-O {[%clk 0:02:46.1]} 8. Nc3 {[%clk 0:02:54.6]}
8... Bb7 {[%clk 0:02:46.8]} 9. Bf4 {[%clk 0:02:46.9]} 9... Bxf3 {[%clk 0:02:36]}
10. Qxf3 {[%clk 0:02:46.2]} 10... c6 {[%clk 0:02:36.6]} 11. Ba4 {[%clk
0:02:45.6]} 11... d5 {[%clk 0:02:36.8]} 12. c5 {[%clk 0:02:42.1]} 12... Qa5
{[%clk 0:02:25]} 13. a3 {[%clk 0:02:36.7]} 13... Rc8 {[%clk 0:02:20.6]} 14. b4
{[%clk 0:02:30]} 14... Qd8 {[%clk 0:02:18.9]} 15. Bc2 {[%clk 0:02:21.2]} 15...
Nbd7 {[%clk 0:02:16.2]} 16. a4 {[%clk 0:02:15]} 16... a6 {[%clk 0:02:14]} 17. h3
{[%clk 0:02:13.4]} 17... Nf8 {[%clk 0:02:14.3]} 18. b5 {[%clk 0:02:06.2]} 18...
axb5 {[%clk 0:02:11.1]} 19. axb5 {[%clk 0:02:05.9]} 19... cxb5 {[%clk 0:02:12]}
20. Nxb5 {[%clk 0:02:03.6]} 20... Qd7 {[%clk 0:02:10.8]} 21. Nd6 {[%clk
0:01:57.2]} 21... Rcb8 {[%clk 0:02:08.2]} 22. Rxa8 {[%clk 0:01:53]} 22... Rxa8
{[%clk 0:02:09.1]} 23. Rb1 {[%clk 0:01:52.9]} 23... Bxd6 {[%clk 0:01:43.8]} 24.
Bxd6 {[%clk 0:01:50.3]} 24... Ng6 {[%clk 0:01:44.2]} 25. Qb3 {[%clk 0:01:39.5]}
25... Ne8 {[%clk 0:01:00.5]} 26. Bg3 {[%clk 0:01:35.7]} 26... Ne7 {[%clk
0:01:00.7]} 27. Bd3 {[%clk 0:01:31.6]} 27... Qa4 {[%clk 0:00:27.7]} 28. Qxa4
{[%clk 0:01:27.3]} 28... Rxa4 {[%clk 0:00:28.6]} 29. Rb8 {[%clk 0:01:27.2]}
29... Kf8 {[%clk 0:00:25.4]} 30. Rxe8+ {[%clk 0:01:25.6]} 30... Kxe8 {[%clk
0:00:25.1]} 31. Bb5+ {[%clk 0:01:26.2]} 31... Kd8 {[%clk 0:00:25.4]} 32. Bxa4
{[%clk 0:01:27.1]} 1-0

[Event "Early-Titled-Tuesday-Blitz-April-23-2024"]
[Site "Chess.com"]
[Date "2024.04.23"]
[Round "3"]
[White "GM4life"]
[Black "The_Sherman_Variation"]
[Result "0-1"]
[WhiteElo "2505"]
[BlackElo "2727"]
[TimeControl "180+1"]
[EndTime "8:27:17 PDT"]
[Termination "The_Sherman_Variation won by checkmate"]

1. Nf3 {[%clk 0:03:00.9]} 1... d5 {[%clk 0:02:55.1]} 2. g3 {[%clk 0:03:01.5]}
2... Nf6 {[%clk 0:02:53]} 3. Bg2 {[%clk 0:03:02]} 3... g6 {[%clk 0:02:52.4]} 4.
O-O {[%clk 0:03:02.4]} 4... Bg7 {[%clk 0:02:52.8]} 5. c4 {[%clk 0:03:01.5]} 5...
c6 {[%clk 0:02:51.3]} 6. d3 {[%clk 0:02:57.1]} 6... O-O {[%clk 0:02:50.5]} 7.
Nbd2 {[%clk 0:02:56]} 7... a5 {[%clk 0:02:47.2]} 8. Rb1 {[%clk 0:02:55]} 8... a4
{[%clk 0:02:45.5]} 9. h3 {[%clk 0:02:50.9]} 9... Nbd7 {[%clk 0:02:39.4]} 10. b3
{[%clk 0:02:45.5]} 10... axb3 {[%clk 0:02:33]} 11. axb3 {[%clk 0:02:45.1]} 11...
e5 {[%clk 0:02:33.1]} 12. Bb2 {[%clk 0:02:44.3]} 12... Qe7 {[%clk 0:02:29.9]}
13. Ra1 {[%clk 0:02:42.1]} 13... Rxa1 {[%clk 0:02:28.2]} 14. Qxa1 {[%clk
0:02:42]} 14... d4 {[%clk 0:02:24.6]} 15. Ba3 {[%clk 0:02:33.8]} 15... c5 {[%clk
0:02:23.2]} 16. Ng5 {[%clk 0:02:32.7]} 16... Ne8 {[%clk 0:02:17.4]} 17. h4
{[%clk 0:02:22.7]} 17... h6 {[%clk 0:02:16.7]} 18. Nge4 {[%clk 0:02:17.8]} 18...
f5 {[%clk 0:02:14.8]} 19. Nxc5 {[%clk 0:02:10.4]} 19... Nxc5 {[%clk 0:02:13.7]}
20. b4 {[%clk 0:02:10.9]} 20... Ne6 {[%clk 0:02:09.4]} 21. c5 {[%clk 0:02:09.6]}
21... Kh7 {[%clk 0:02:05.9]} 22. Rc1 {[%clk 0:02:07.4]} 22... N8c7 {[%clk
0:02:01.4]} 23. Nc4 {[%clk 0:01:59.6]} 23... Nb5 {[%clk 0:01:57.7]} 24. Bb2
{[%clk 0:01:59.2]} 24... Qc7 {[%clk 0:01:52.4]} 25. Nb6 {[%clk 0:01:55.1]} 25...
e4 {[%clk 0:01:37.7]} 26. dxe4 {[%clk 0:01:45]} 26... fxe4 {[%clk 0:01:36.1]}
27. Bxe4 {[%clk 0:01:44.7]} 27... Qe5 {[%clk 0:01:29.5]} 28. Qb1 {[%clk
0:01:41.8]} 28... Qf6 {[%clk 0:01:28.5]} 29. f3 {[%clk 0:01:40.3]} 29... h5
{[%clk 0:01:19.8]} 30. Nd5 {[%clk 0:01:23.6]} 30... Qe5 {[%clk 0:01:18.5]} 31.
Ne3 {[%clk 0:01:23.5]} 31... Qxg3+ {[%clk 0:01:14.8]} 32. Kh1 {[%clk 0:01:01.7]}
32... dxe3 {[%clk 0:01:13.5]} 33. Bxg7 {[%clk 0:00:59]} 33... Nxg7 {[%clk
0:01:14.4]} 34. Qd3 {[%clk 0:00:53.2]} 34... Bf5 {[%clk 0:01:05.2]} 35. Rg1
{[%clk 0:00:48.2]} 35... Qh3# {[%clk 0:01:04.5]} 0-1

[Event "Early-Titled-Tuesday-Blitz-April-23-2024"]
[Site "Chess.com"]
[Date "2024.04.23"]
[Round "3"]
[White "ChessMA48"]
[Black "djano"]
[Result "0-1"]
[WhiteElo "2354"]
[BlackElo "2615"]
[TimeControl "180+1"]
[EndTime "8:27:18 PDT"]
[Termination "djano won by checkmate"]

1. d4 {[%clk 0:03:00.9]} 1... Nf6 {[%clk 0:02:59.4]} 2. c4 {[%clk 0:03:00.1]}
2... g6 {[%clk 0:02:59.8]} 3. Nc3 {[%clk 0:02:59.6]} 3... Bg7 {[%clk 0:03:00.4]}
4. e4 {[%clk 0:03:00]} 4... d6 {[%clk 0:03:00.9]} 5. h3 {[%clk 0:02:59.6]} 5...
O-O {[%clk 0:03:00.3]} 6. Be3 {[%clk 0:03:00]} 6... a6 {[%clk 0:02:57.8]} 7.
Nge2 {[%clk 0:02:45.2]} 7... b5 {[%clk 0:02:56.3]} 8. cxb5 {[%clk 0:02:35.3]}
8... axb5 {[%clk 0:02:57.2]} 9. Ng3 {[%clk 0:02:35.4]} 9... b4 {[%clk 0:02:56]}
10. Nce2 {[%clk 0:02:28.9]} 10... Bb7 {[%clk 0:02:52.1]} 11. Qc2 {[%clk
0:02:23.3]} 11... c5 {[%clk 0:02:49.7]} 12. dxc5 {[%clk 0:02:19.4]} 12... dxc5
{[%clk 0:02:50.6]} 13. Bxc5 {[%clk 0:02:08.6]} 13... Qa5 {[%clk 0:02:46.1]} 14.
Bxe7 {[%clk 0:01:49.7]} 14... b3+ {[%clk 0:02:21]} 15. Qc3 {[%clk 0:01:45.1]}
15... Qxa2 {[%clk 0:02:16.5]} 16. Rd1 {[%clk 0:01:13.8]} 16... Nd5 {[%clk
0:01:58.7]} 17. Qc5 {[%clk 0:01:01]} 17... Na6 {[%clk 0:01:34.5]} 18. Qd6 {[%clk
0:00:46.1]} 18... Nxe7 {[%clk 0:01:28.7]} 19. Qxe7 {[%clk 0:00:45.8]} 19... Qa5+
{[%clk 0:01:23.2]} 20. Nc3 {[%clk 0:00:41.9]} 20... Bxc3+ {[%clk 0:01:22.9]} 21.
bxc3 {[%clk 0:00:42.3]} 21... Qxc3+ {[%clk 0:01:23.6]} 22. Ke2 {[%clk
0:00:36.4]} 22... Nc5 {[%clk 0:01:21.4]} 23. h4 {[%clk 0:00:25.6]} 23... Ba6+
{[%clk 0:01:20.8]} 24. Rd3 {[%clk 0:00:22]} 24... Qxd3+ {[%clk 0:01:15.5]} 25.
Ke1 {[%clk 0:00:21.5]} 25... Qb1+ {[%clk 0:01:15.2]} 26. Kd2 {[%clk 0:00:20.6]}
26... Qc2+ {[%clk 0:01:15.2]} 27. Ke1 {[%clk 0:00:19.4]} 27... Qc1# {[%clk
0:01:14.8]} 0-1

[Event "Early-Titled-Tuesday-Blitz-April-23-2024"]
[Site "Chess.com"]
[Date "2024.04.23"]
[Round "3"]
[White "shirovin"]
[Black "lioni26"]
[Result "0-1"]
[WhiteElo "2063"]
[BlackElo "2560"]
[TimeControl "180+1"]
[EndTime "8:27:19 PDT"]
[Termination "lioni26 won by resignation"]

1. e4 {[%clk 0:03:00.9]} 1... e5 {[%clk 0:02:59.4]} 2. Nf3 {[%clk 0:03:00.2]}
2... Nc6 {[%clk 0:02:59.5]} 3. Bc4 {[%clk 0:03:00.6]} 3... Nf6 {[%clk
0:02:57.8]} 4. Ng5 {[%clk 0:03:00.1]} 4... d5 {[%clk 0:02:56.9]} 5. exd5 {[%clk
0:03:00.4]} 5... Na5 {[%clk 0:02:54.4]} 6. Bb5+ {[%clk 0:03:00.5]} 6... c6
{[%clk 0:02:53.9]} 7. dxc6 {[%clk 0:03:01.1]} 7... bxc6 {[%clk 0:02:54.4]} 8.
Qf3 {[%clk 0:03:01.1]} 8... Be7 {[%clk 0:02:41.4]} 9. Ba4 {[%clk 0:02:56.3]}
9... O-O {[%clk 0:02:37.7]} 10. O-O {[%clk 0:02:54.5]} 10... Nd5 {[%clk
0:02:35.8]} 11. Ne4 {[%clk 0:02:44.1]} 11... f5 {[%clk 0:02:32.5]} 12. Nec3
{[%clk 0:02:42.8]} 12... e4 {[%clk 0:02:32.5]} 13. Qd1 {[%clk 0:02:42.5]} 13...
Qc7 {[%clk 0:02:24.1]} 14. d3 {[%clk 0:02:41]} 14... Ba6 {[%clk 0:02:07.8]} 15.
Re1 {[%clk 0:02:35.3]} 15... Rad8 {[%clk 0:02:07.7]} 16. Nxd5 {[%clk 0:02:20.8]}
16... cxd5 {[%clk 0:02:05.9]} 17. Bb3 {[%clk 0:02:10]} 17... Kh8 {[%clk
0:02:03.7]} 18. g3 {[%clk 0:02:03]} 18... Bb7 {[%clk 0:01:59]} 19. Bd2 {[%clk
0:01:54.1]} 19... Nc6 {[%clk 0:01:52.5]} 20. Bf4 {[%clk 0:01:50.9]} 20... Qc8
{[%clk 0:01:50.7]} 21. dxe4 {[%clk 0:01:31.2]} 21... dxe4 {[%clk 0:01:47.1]} 22.
Qc1 {[%clk 0:01:21.6]} 22... Nd4 {[%clk 0:01:30.6]} 23. Rd1 {[%clk 0:01:15]}
23... Nf3+ {[%clk 0:01:28.9]} 24. Kh1 {[%clk 0:01:10]} 24... Rxd1+ {[%clk
0:01:23.2]} 25. Qxd1 {[%clk 0:01:04.4]} 25... g5 {[%clk 0:01:23.2]} 26. Be3
{[%clk 0:00:52.7]} 26... Bf6 {[%clk 0:01:21.8]} 27. c3 {[%clk 0:00:49.1]} 27...
f4 {[%clk 0:01:19.4]} 28. Bd4 {[%clk 0:00:47.3]} 28... Bxd4 {[%clk 0:01:18.2]}
29. cxd4 {[%clk 0:00:46.2]} 29... Qh3 {[%clk 0:01:18.2]} 0-1

[Event "Early-Titled-Tuesday-Blitz-April-23-2024"]
[Site "Chess.com"]
[Date "2024.04.23"]
[Round "3"]
[White "vladislavkovalev"]
[Black "DeArron_Fox"]
[Result "1-0"]
[WhiteElo "2852"]
[BlackElo "2536"]
[TimeControl "180+1"]
[EndTime "8:27:22 PDT"]
[Termination "vladislavkovalev won by resignation"]

1. e4 {[%clk 0:02:58.4]} 1... c5 {[%clk 0:02:59.9]} 2. Nf3 {[%clk 0:02:58.8]}
2... e6 {[%clk 0:03:00.4]} 3. c3 {[%clk 0:02:58.9]} 3... d5 {[%clk 0:03:00]} 4.
exd5 {[%clk 0:02:59.8]} 4... Qxd5 {[%clk 0:03:00.6]} 5. d4 {[%clk 0:03:00.2]}
5... Nf6 {[%clk 0:03:01.1]} 6. Na3 {[%clk 0:02:56.5]} 6... Nc6 {[%clk
0:03:00.9]} 7. Nb5 {[%clk 0:02:56]} 7... Qd8 {[%clk 0:03:00.5]} 8. dxc5 {[%clk
0:02:55.1]} 8... Bxc5 {[%clk 0:03:01.3]} 9. Qxd8+ {[%clk 0:02:55.4]} 9... Kxd8
{[%clk 0:03:02.2]} 10. b4 {[%clk 0:02:54.9]} 10... Bb6 {[%clk 0:02:57.5]} 11.
Nd6 {[%clk 0:02:52.7]} 11... Ke7 {[%clk 0:02:41]} 12. Nc4 {[%clk 0:02:52.7]}
12... Nd5 {[%clk 0:02:29.9]} 13. b5 {[%clk 0:02:42.7]} 13... Na5 {[%clk
0:02:25.8]} 14. Ba3+ {[%clk 0:02:42.7]} 14... Kf6 {[%clk 0:02:21.6]} 15. Nxb6
{[%clk 0:02:25.5]} 15... axb6 {[%clk 0:02:18.4]} 16. Bb2 {[%clk 0:02:25.7]}
16... Ke7 {[%clk 0:02:05.6]} 17. c4 {[%clk 0:02:25.9]} 17... Nb4 {[%clk
0:01:00.2]} 18. Kd2 {[%clk 0:02:22.3]} 18... Rd8+ {[%clk 0:00:58.5]} 19. Kc3
{[%clk 0:02:17.1]} 19... Nac6 {[%clk 0:00:21.3]} 20. bxc6 {[%clk 0:02:01.7]}
20... Nxc6 {[%clk 0:00:22.2]} 21. Be2 {[%clk 0:01:57]} 21... e5 {[%clk
0:00:16.9]} 22. Rhd1 {[%clk 0:01:56.9]} 22... Bg4 {[%clk 0:00:12.1]} 23. Rxd8
{[%clk 0:01:56.9]} 23... Rxd8 {[%clk 0:00:13]} 24. h3 {[%clk 0:01:52.9]} 24...
Bh5 {[%clk 0:00:04.7]} 25. Rd1 {[%clk 0:01:51.6]} 25... Rxd1 {[%clk 0:00:04.8]}
26. Bxd1 {[%clk 0:01:52.5]} 26... e4 {[%clk 0:00:05.7]} 27. g4 {[%clk
0:01:53.1]} 27... Bg6 {[%clk 0:00:02.8]} 28. Nd4 {[%clk 0:01:50.5]} 28... Ne5
{[%clk 0:00:02.1]} 29. Be2 {[%clk 0:01:50.5]} 29... h6 {[%clk 0:00:01.3]} 30.
Bc1 {[%clk 0:01:47.2]} 30... Kf6 {[%clk 0:00:01.7]} 31. Be3 {[%clk 0:01:47.1]}
31... Nd7 {[%clk 0:00:02]} 32. Nb3 {[%clk 0:01:47]} 32... Ke5 {[%clk 0:00:01.8]}
33. Bd4+ {[%clk 0:01:44.4]} 33... Kd6 {[%clk 0:00:01.5]} 34. Bxg7 {[%clk
0:01:44.7]} 1-0

[Event "Early-Titled-Tuesday-Blitz-April-23-2024"]
[Site "Chess.com"]
[Date "2024.04.23"]
[Round "3"]
[White "Aryan_Tamadon"]
[Black "whitemirrorninja"]
[Result "1-0"]
[WhiteElo "2631"]
[BlackElo "2452"]
[TimeControl "180+1"]
[EndTime "8:27:29 PDT"]
[Termination "Aryan_Tamadon won by resignation"]

1. Nf3 {[%clk 0:03:00.9]} 1... Nc6 {[%clk 0:02:58.5]} 2. d4 {[%clk 0:02:57.5]}
2... d5 {[%clk 0:02:58.2]} 3. e3 {[%clk 0:02:57.7]} 3... Bf5 {[%clk 0:02:55.8]}
4. c4 {[%clk 0:02:56.1]} 4... e6 {[%clk 0:02:52.8]} 5. Qb3 {[%clk 0:02:54]} 5...
Nb4 {[%clk 0:02:39]} 6. Na3 {[%clk 0:02:51]} 6... a5 {[%clk 0:02:38.8]} 7. Be2
{[%clk 0:02:33.9]} 7... c6 {[%clk 0:02:32.6]} 8. O-O {[%clk 0:02:23.3]} 8... Nh6
{[%clk 0:02:30.9]} 9. c5 {[%clk 0:01:57.8]} 9... Be7 {[%clk 0:02:26.7]} 10. Bd2
{[%clk 0:01:56.9]} 10... O-O {[%clk 0:02:18.9]} 11. Rac1 {[%clk 0:01:39.5]}
11... b5 {[%clk 0:01:56.1]} 12. Bxb4 {[%clk 0:01:18.5]} 12... axb4 {[%clk
0:01:57]} 13. Qxb4 {[%clk 0:01:17.1]} 13... Qc7 {[%clk 0:01:51.8]} 14. Qb3
{[%clk 0:01:08.6]} 14... Qa5 {[%clk 0:01:46.2]} 15. Ra1 {[%clk 0:01:05]} 15...
Qa4 {[%clk 0:01:38]} 16. Bd1 {[%clk 0:01:05.2]} 16... Qa7 {[%clk 0:01:30.8]} 17.
Nc2 {[%clk 0:00:58.8]} 17... Bd8 {[%clk 0:01:29.5]} 18. Nb4 {[%clk 0:00:58.5]}
18... Qb7 {[%clk 0:01:25.1]} 19. Ne5 {[%clk 0:00:58.9]} 19... Rc8 {[%clk
0:01:25.2]} 20. a4 {[%clk 0:00:52.5]} 20... bxa4 {[%clk 0:01:24.6]} 21. Qxa4
{[%clk 0:00:51.2]} 21... f6 {[%clk 0:01:14.8]} 22. Nexc6 {[%clk 0:00:51.4]}
22... e5 {[%clk 0:01:14.9]} 23. Be2 {[%clk 0:00:48.2]} 23... Bd7 {[%clk
0:01:11.1]} 24. Ba6 {[%clk 0:00:45.7]} 24... Bxc6 {[%clk 0:01:00.4]} 25. Bxb7
{[%clk 0:00:45.8]} 25... Bxa4 {[%clk 0:01:01]} 26. Bxc8 {[%clk 0:00:41.8]} 26...
Bb5 {[%clk 0:01:01.6]} 27. Rfc1 {[%clk 0:00:36.6]} 27... exd4 {[%clk 0:00:59.7]}
28. exd4 {[%clk 0:00:37.5]} 28... Nf5 {[%clk 0:01:00]} 29. Bxf5 {[%clk
0:00:37.3]} 1-0

[Event "Early-Titled-Tuesday-Blitz-April-23-2024"]
[Site "Chess.com"]
[Date "2024.04.23"]
[Round "3"]
[White "NMChessToImpress"]
[Black "Zampronha1971"]
[Result "0-1"]
[WhiteElo "2216"]
[BlackElo "2433"]
[TimeControl "180+1"]
[EndTime "8:27:34 PDT"]
[Termination "Zampronha1971 won by resignation"]

1. e4 {[%clk 0:02:58.1]} 1... c5 {[%clk 0:02:59.6]} 2. Nf3 {[%clk 0:02:58]} 2...
e6 {[%clk 0:02:59.9]} 3. d4 {[%clk 0:02:58.3]} 3... cxd4 {[%clk 0:03:00.8]} 4.
Nxd4 {[%clk 0:02:53.7]} 4... Nc6 {[%clk 0:03:01.3]} 5. Nc3 {[%clk 0:02:53.5]}
5... Qc7 {[%clk 0:03:01]} 6. Be3 {[%clk 0:02:52.6]} 6... a6 {[%clk 0:03:01.4]}
7. Qd2 {[%clk 0:02:52.9]} 7... Nf6 {[%clk 0:03:01.9]} 8. O-O-O {[%clk
0:02:52.3]} 8... Bb4 {[%clk 0:03:01.5]} 9. f3 {[%clk 0:02:51]} 9... Ne5 {[%clk
0:02:58.9]} 10. Nb3 {[%clk 0:02:48.8]} 10... b5 {[%clk 0:02:52.4]} 11. Bd4
{[%clk 0:02:44]} 11... O-O {[%clk 0:02:38.3]} 12. a3 {[%clk 0:02:39.8]} 12...
Be7 {[%clk 0:02:37.7]} 13. Kb1 {[%clk 0:02:29]} 13... d6 {[%clk 0:02:36.6]} 14.
Qf2 {[%clk 0:02:08.4]} 14... Rb8 {[%clk 0:02:32]} 15. g4 {[%clk 0:02:04.2]}
15... Nc4 {[%clk 0:02:26.6]} 16. g5 {[%clk 0:01:53.3]} 16... Nd7 {[%clk
0:02:26.5]} 17. h4 {[%clk 0:01:43]} 17... Bb7 {[%clk 0:02:25.7]} 18. h5 {[%clk
0:01:30.5]} 18... e5 {[%clk 0:02:26]} 19. g6 {[%clk 0:01:27.9]} 19... exd4
{[%clk 0:02:21.4]} 20. Nxd4 {[%clk 0:01:27.4]} 20... Nxa3+ {[%clk 0:02:11.7]}
21. Kc1 {[%clk 0:01:03.7]} 21... b4 {[%clk 0:02:00.9]} 22. h6 {[%clk 0:00:44.3]}
22... Bg5+ {[%clk 0:01:45.6]} 23. f4 {[%clk 0:00:42.3]} 23... Bxh6 {[%clk
0:01:43.9]} 24. gxh7+ {[%clk 0:00:22.1]} 24... Kh8 {[%clk 0:01:43.7]} 25. Nf5
{[%clk 0:00:13.3]} 25... bxc3 {[%clk 0:01:40.5]} 26. bxa3 {[%clk 0:00:11.8]}
26... Bxe4 {[%clk 0:01:37]} 27. Nxh6 {[%clk 0:00:08]} 27... gxh6 {[%clk
0:01:36.2]} 28. Qd4+ {[%clk 0:00:07.3]} 28... f6 {[%clk 0:01:26.3]} 29. Qxe4
{[%clk 0:00:03.3]} 29... Qb6 {[%clk 0:01:26.3]} 30. Qb4 {[%clk 0:00:02]} 30...
Qe3+ {[%clk 0:01:25]} 0-1

[Event "Early-Titled-Tuesday-Blitz-April-23-2024"]
[Site "Chess.com"]
[Date "2024.04.23"]
[Round "3"]
[White "blitzking1729"]
[Black "Baku_Boulevard"]
[Result "0-1"]
[WhiteElo "2762"]
[BlackElo "3045"]
[TimeControl "180+1"]
[EndTime "8:27:37 PDT"]
[Termination "Baku_Boulevard won by resignation"]

1. Nf3 {[%clk 0:02:55.3]} 1... d5 {[%clk 0:02:58.6]} 2. e3 {[%clk 0:02:52.4]}
2... Nf6 {[%clk 0:02:56.4]} 3. c3 {[%clk 0:02:50]} 3... Bf5 {[%clk 0:02:52.8]}
4. d4 {[%clk 0:02:49.3]} 4... e6 {[%clk 0:02:52.9]} 5. Be2 {[%clk 0:02:39.4]}
5... Nbd7 {[%clk 0:02:51.8]} 6. O-O {[%clk 0:02:38.8]} 6... Bd6 {[%clk
0:02:50.3]} 7. Nbd2 {[%clk 0:02:34.4]} 7... c6 {[%clk 0:02:49.9]} 8. b3 {[%clk
0:02:34.1]} 8... Qc7 {[%clk 0:02:45.4]} 9. Bb2 {[%clk 0:02:33.9]} 9... g5 {[%clk
0:02:45.1]} 10. Nxg5 {[%clk 0:02:23.9]} 10... Bxh2+ {[%clk 0:02:44.1]} 11. Kh1
{[%clk 0:02:24.6]} 11... Bd6 {[%clk 0:02:35.1]} 12. c4 {[%clk 0:02:13.7]} 12...
h6 {[%clk 0:02:32.5]} 13. Ngf3 {[%clk 0:02:11.5]} 13... O-O-O {[%clk 0:02:32.3]}
14. c5 {[%clk 0:02:05.6]} 14... Be7 {[%clk 0:02:31.9]} 15. b4 {[%clk 0:02:05.9]}
15... Ng4 {[%clk 0:02:03.5]} 16. b5 {[%clk 0:01:47.8]} 16... Nb8 {[%clk
0:02:03.1]} 17. Qa4 {[%clk 0:01:42.3]} 17... Bh4 {[%clk 0:01:43.7]} 18. Kg1
{[%clk 0:01:34]} 18... Rdg8 {[%clk 0:01:39.3]} 19. Ne5 {[%clk 0:00:42.1]} 19...
f6 {[%clk 0:01:27.7]} 20. Nxg4 {[%clk 0:00:33.9]} 20... Bxg4 {[%clk 0:01:26.6]}
21. Bxg4 {[%clk 0:00:33.8]} 21... Rxg4 {[%clk 0:01:27.4]} 22. Nf3 {[%clk
0:00:19.9]} 22... Rhg8 {[%clk 0:01:26.4]} 23. Nxh4 {[%clk 0:00:20.1]} 23... Rxh4
{[%clk 0:01:26.7]} 24. f4 {[%clk 0:00:20.8]} 24... Qg7 {[%clk 0:01:25.1]} 25.
Rf2 {[%clk 0:00:19]} 25... Qg3 {[%clk 0:01:23.6]} 26. Qxa7 {[%clk 0:00:14.2]}
26... Qxe3 {[%clk 0:01:18.7]} 27. bxc6 {[%clk 0:00:12.7]} 27... Rxg2+ {[%clk
0:01:18.4]} 28. Kxg2 {[%clk 0:00:12.5]} 28... Qh3+ {[%clk 0:01:18.4]} 0-1

[Event "Early-Titled-Tuesday-Blitz-April-23-2024"]
[Site "Chess.com"]
[Date "2024.04.23"]
[Round "3"]
[White "LiadCuba"]
[Black "Suleyman_Chess06"]
[Result "0-1"]
[WhiteElo "2531"]
[BlackElo "2831"]
[TimeControl "180+1"]
[EndTime "8:27:37 PDT"]
[Termination "Suleyman_Chess06 won on time"]

1. d4 {[%clk 0:02:53]} 1... Nf6 {[%clk 0:02:59.6]} 2. c4 {[%clk 0:02:52.8]} 2...
e6 {[%clk 0:02:59.3]} 3. Nc3 {[%clk 0:02:53]} 3... Bb4 {[%clk 0:02:59.4]} 4. f3
{[%clk 0:02:53.2]} 4... c5 {[%clk 0:02:58.9]} 5. d5 {[%clk 0:02:53.5]} 5... exd5
{[%clk 0:02:58.7]} 6. cxd5 {[%clk 0:02:54.4]} 6... d6 {[%clk 0:02:59.3]} 7. e4
{[%clk 0:02:54.7]} 7... O-O {[%clk 0:03:00]} 8. Ne2 {[%clk 0:02:54.6]} 8... b5
{[%clk 0:02:59.5]} 9. Ng3 {[%clk 0:02:50.2]} 9... a6 {[%clk 0:02:58.5]} 10. a4
{[%clk 0:02:49.9]} 10... bxa4 {[%clk 0:02:56.7]} 11. Rxa4 {[%clk 0:02:47.3]}
11... Nbd7 {[%clk 0:02:56.9]} 12. Be2 {[%clk 0:02:37.6]} 12... Ne5 {[%clk
0:02:56.9]} 13. O-O {[%clk 0:02:33.6]} 13... Bd7 {[%clk 0:02:56.8]} 14. Ra1
{[%clk 0:02:31.6]} 14... Re8 {[%clk 0:02:56.7]} 15. Kh1 {[%clk 0:02:27.4]} 15...
Qb6 {[%clk 0:02:48.7]} 16. Na4 {[%clk 0:02:06.6]} 16... Bxa4 {[%clk 0:02:44.4]}
17. Rxa4 {[%clk 0:02:07.5]} 17... Nfd7 {[%clk 0:02:42.5]} 18. Nf5 {[%clk
0:01:58.2]} 18... c4 {[%clk 0:02:33.2]} 19. Be3 {[%clk 0:01:45.7]} 19... Bc5
{[%clk 0:02:33.2]} 20. Qd2 {[%clk 0:01:27.8]} 20... g6 {[%clk 0:02:30.3]} 21.
Nh6+ {[%clk 0:01:09.6]} 21... Kg7 {[%clk 0:02:30.2]} 22. Bf4 {[%clk 0:01:10]}
22... Reb8 {[%clk 0:02:20.8]} 23. Ng4 {[%clk 0:00:57.2]} 23... Qxb2 {[%clk
0:02:18.9]} 24. Bxe5+ {[%clk 0:00:46.9]} 24... dxe5 {[%clk 0:02:03]} 25. Qh6+
{[%clk 0:00:38.5]} 25... Kg8 {[%clk 0:02:01.8]} 26. Bxc4 {[%clk 0:00:34.2]}
26... Qc2 {[%clk 0:02:00]} 27. Rc1 {[%clk 0:00:18]} 27... Rb1 {[%clk 0:01:55.3]}
28. Ra1 {[%clk 0:00:12.1]} 28... Rxa1 {[%clk 0:01:55.7]} 29. Rxa1 {[%clk
0:00:12.1]} 29... Qxc4 {[%clk 0:01:56.2]} 30. h4 {[%clk 0:00:11.5]} 30... Bf8
{[%clk 0:01:51.6]} 31. Qg5 {[%clk 0:00:10.6]} 31... Qc5 {[%clk 0:01:41.8]} 32.
Rc1 {[%clk 0:00:07.2]} 32... Qe7 {[%clk 0:01:39.5]} 33. Rc7 {[%clk 0:00:01.9]}
33... Qxg5 {[%clk 0:01:37.5]} 34. hxg5 {[%clk 0:00:02.8]} 34... Nc5 {[%clk
0:01:31.4]} 0-1

[Event "Early-Titled-Tuesday-Blitz-April-23-2024"]
[Site "Chess.com"]
[Date "2024.04.23"]
[Round "3"]
[White "AryanTari"]
[Black "ragnaroek66"]
[Result "1-0"]
[WhiteElo "2941"]
[BlackElo "2547"]
[TimeControl "180+1"]
[EndTime "8:27:39 PDT"]
[Termination "AryanTari won by resignation"]

1. e4 {[%clk 0:03:00.9]} 1... c6 {[%clk 0:02:59]} 2. d4 {[%clk 0:02:58.4]} 2...
d6 {[%clk 0:02:59.9]} 3. Nf3 {[%clk 0:02:57.6]} 3... d5 {[%clk 0:03:00.8]} 4.
Nbd2 {[%clk 0:02:56]} 4... Bg4 {[%clk 0:02:59.1]} 5. e5 {[%clk 0:02:51.3]} 5...
e6 {[%clk 0:02:58.5]} 6. c3 {[%clk 0:02:44.6]} 6... Ne7 {[%clk 0:02:57.8]} 7.
Be2 {[%clk 0:02:36.3]} 7... Nd7 {[%clk 0:02:55.4]} 8. Nf1 {[%clk 0:02:34]} 8...
c5 {[%clk 0:02:42.5]} 9. Ng3 {[%clk 0:02:12.2]} 9... Nc6 {[%clk 0:02:41.9]} 10.
O-O {[%clk 0:02:07.3]} 10... Be7 {[%clk 0:02:29.9]} 11. Be3 {[%clk 0:02:05.4]}
11... h5 {[%clk 0:02:26.1]} 12. h3 {[%clk 0:01:57.5]} 12... h4 {[%clk
0:02:13.5]} 13. hxg4 {[%clk 0:01:57.7]} 13... hxg3 {[%clk 0:02:13.6]} 14. fxg3
{[%clk 0:01:58.6]} 14... f6 {[%clk 0:02:09.7]} 15. exf6 {[%clk 0:01:42.2]} 15...
Bxf6 {[%clk 0:02:09.8]} 16. g5 {[%clk 0:01:33.2]} 16... Be7 {[%clk 0:02:09.4]}
17. Nh4 {[%clk 0:01:33.3]} 17... Nf8 {[%clk 0:01:58.6]} 18. Bh5+ {[%clk
0:01:30]} 18... Kd7 {[%clk 0:01:58.8]} 19. Rf7 {[%clk 0:01:27.7]} 19... Qc7
{[%clk 0:01:53.9]} 20. Qf3 {[%clk 0:01:12.5]} 20... Qb6 {[%clk 0:01:45]} 21.
Rxg7 {[%clk 0:01:08.9]} 21... Qxb2 {[%clk 0:01:38.7]} 22. Rd1 {[%clk 0:00:59.8]}
22... Qxc3 {[%clk 0:01:36.9]} 23. Bg4 {[%clk 0:00:33.1]} 23... Qc4 {[%clk
0:00:51.8]} 24. dxc5 {[%clk 0:00:30]} 24... Ne5 {[%clk 0:00:51.8]} 25. Qxd5+
{[%clk 0:00:24.3]} 25... Qxd5 {[%clk 0:00:47.9]} 26. Rxd5+ {[%clk 0:00:24.6]}
1-0